fUSD/lending_fUSD_20250105
["ID","MTS","AMOUNT","RATE_DAILY","PERIOD"]
[347733505,1736086283860,-429.47561759,9.583e-05,2]
[347733506,1736086283870,-1427.37,9.589e-05,2]
[347733507,1736086283882,-808.6,9.589e-05,2]
[347733508,1736086283891,-2407.38,9.589e-05,2]
[347733509,1736086283900,-429.47561763,9.682e-05,2]
[347733510,1736086283910,-1427.37,9.863e-05,2]
[347733511,1736086283920,-808.6,9.863e-05,2]
[347733512,1736086283930,-14420.66634193,9.9e-05,2]
[347733513,1736086283942,-2732.31868738,9.9e-05,2]
[347733514,1736086283967,-1109.68611889,9.9e-05,2]
[347733515,1736086283979,-514.09640394,9.9e-05,2]
[347733516,1736086283991,-562.03917688,9.9e-05,2]
[347733517,1736086284015,-2934.72,9.9e-05,2]
[347733518,1736086284322,-500.0,8.219e-05,2]
[347733519,1736086284332,-96.0138533,8.219e-05,2]
[347733520,1736086284368,-403.9861467,8.219e-05,2]
[347733521,1736086284378,-405.92827876,8.493e-05,2]
[347733522,1736086285026,-500.0,8.219e-05,2]
[347733523,1736086285036,-94.07172124,8.493e-05,2]
[347733524,1736086285046,-187.20292876,8.493e-05,2]
[347733525,1736086285062,-103.58707124,8.493e-05,2]
[347733526,1736086285071,-500.0,8.493e-05,2]
[347733527,1736086285081,-500.0,8.767e-05,2]
[347733528,1736086285091,-500.0,8.767e-05,2]
[347733529,1736086285100,-500.0,9.041e-05,2]
[347733530,1736086285110,-500.0,9.041e-05,2]
[347733531,1736086285120,-500.0,9.315e-05,2]
[347733532,1736086285132,-500.0,9.315e-05,2]
[347733533,1736086285142,-307.01292876,9.315e-05,2]
[347733534,1736086285165,-126.98707124,9.315e-05,2]
[347733535,1736086285175,-217.85292876,9.589e-05,2]
[347733536,1736086285947,-425.67146708,8.219e-05,2]
[347733537,1736086285985,-74.32853292,8.219e-05,2]
[347733538,1736086285995,-275.37569968,8.219e-05,2]
[347733539,1736086294940,1407234.98953098,0.00022,120]
[347733540,1736086295231,5012.24394417,0.00022,120]
[347733541,1736086306816,9056.560755,0.00022,120]
[347733542,1736086312457,3344.947919,0.00022,120]
[347733548,1736086411850,291.5271,7.845e-05,2]
[347733549,1736086521519,164.45,6.851e-05,2]
[347733554,1736086987181,3000.333608,0.00022,120]
[347733555,1736087109350,635.32170477,0.00022,120]
[347734303,1736087185326,912.69,7.866e-05,2]
[347734305,1736087215865,150.0,7.781e-05,2]
[347734558,1736087297841,469.9,7.845e-05,2]
[347734564,1736087314371,250.0,7.83e-05,2]
[347734568,1736087334670,150.0,7.629e-05,2]
[347734569,1736087334746,150.0,7.756e-05,2]
[347734571,1736087394386,150.0,7.73e-05,2]
[347734597,1736087431906,-260.78,8e-05,2]
[347734598,1736087431916,-1.98248,8.012e-05,2]
[347734599,1736087431929,-148.01752,8.012e-05,2]
[347734600,1736087431942,-164.67706048,8.012e-05,2]
[347734601,1736087431963,-1491.00904552,8.012e-05,2]
[347734602,1736087431973,-882.7247947,8.187e-05,2]
[347734603,1736087431983,-300.0,8.187e-05,2]
[347734604,1736087431992,-926.26615977,8.188e-05,2]
[347734605,1736087432005,-12040.1726379,8.188e-05,2]
[347734606,1736087432015,-150.0,8.199e-05,2]
[347734607,1736087432025,-7149.7498961,8.218e-05,2]
[347734608,1736087432071,-314.7207309,8.218e-05,2]
[347734609,1736087432156,150.0,7.021e-05,2]
[347734610,1736087432220,150.0,7.856e-05,2]
[347734629,1736087436077,-45955.78887337,8e-05,2]
[347734631,1736087436092,-3819.97534348,8e-05,2]
[347734760,1736087437470,-8556.62056156,8e-05,2]
[347734779,1736087437620,-522.27499128,8e-05,2]
[347734784,1736087437662,-30771.87927659,8e-05,2]
[347734786,1736087437672,-8562.06674791,8.218e-05,2]
[347734799,1736087437778,-3327.21869912,8.218e-05,2]
[347734801,1736087437790,-4187.65090822,8.218e-05,2]
[347734803,1736087437802,-3212.28286127,8.218e-05,2]
[347734805,1736087437813,-573.70130251,8.218e-05,2]
[347734807,1736087437824,-2925.0,8.218e-05,2]
[347734810,1736087437844,-115167.77348036,8.218e-05,2]
[347734812,1736087437855,-7206.02500003,8.218e-05,2]
[347734814,1736087437867,-5369.76247405,8.218e-05,2]
[347734817,1736087437878,-1610.6376421,8.218e-05,2]
[347734819,1736087437890,-540.65357155,8.218e-05,2]
[347734821,1736087437901,-535.64661421,8.218e-05,2]
[347734823,1736087437912,-1616.12213351,8.218e-05,2]
[347734825,1736087437924,-5855.67,8.218e-05,2]
[347734870,1736087439626,-267.90360377,8.218e-05,2]
[347734871,1736087439649,-81577.41433439,8.218e-05,2]
[347734872,1736087439659,-212.98257849,8.218e-05,2]
[347734873,1736087439670,-500.0,8.219e-05,2]
[347734874,1736087439680,-301.90332299,8.219e-05,2]
[347734875,1736087439689,-500.0,8.219e-05,2]
[347734876,1736087439699,-500.0,8.219e-05,2]
[347734877,1736087439709,-1642.54,8.219e-05,2]
[347734878,1736087439720,-500.0,8.219e-05,2]
[347734879,1736087439731,-3807.68,8.219e-05,2]
[347734880,1736087439741,-500.0,8.219e-05,2]
[347734881,1736087439751,-500.0,8.219e-05,2]
[347734882,1736087439761,-3354.98,8.219e-05,2]
[347734883,1736087439771,-3354.98,8.219e-05,2]
[347734884,1736087439780,-2557.36,8.219e-05,2]
[347734885,1736087439790,-500.0,8.219e-05,2]
[347734886,1736087439800,-4574.93,8.219e-05,2]
[347734887,1736087439809,-500.0,8.219e-05,2]
[347734888,1736087439818,-6708.07,8.219e-05,2]
[347734889,1736087439828,-692.96,8.219e-05,2]
[347734890,1736087439839,-563.0,8.219e-05,2]
[347734891,1736087439849,-500.0,8.219e-05,2]
[347734892,1736087439859,-4805.9,8.219e-05,2]
[347734893,1736087439868,-7875.64,8.219e-05,2]
[347734894,1736087439878,-500.0,8.219e-05,2]
[347734895,1736087439887,-500.0,8.219e-05,2]
[347734896,1736087439897,-500.0,8.219e-05,2]
[347734897,1736087439907,-500.0,8.219e-05,2]
[347734898,1736087439917,-500.0,8.219e-05,2]
[347734899,1736087439926,-500.0,8.219e-05,2]
[347734900,1736087439936,-500.0,8.219e-05,2]
[347734901,1736087439946,-576.43,8.219e-05,2]
[347734902,1736087439955,-500.0,8.219e-05,2]
[347734903,1736087439965,-500.0,8.219e-05,2]
[347734904,1736087439975,-500.0,8.219e-05,2]
[347734905,1736087439984,-613.23,8.219e-05,2]
[347734906,1736087439994,-698.39,8.219e-05,2]
[347734907,1736087440004,-1537.2,8.219e-05,2]
[347734908,1736087440013,-500.0,8.219e-05,2]
[347734909,1736087440023,-500.0,8.219e-05,2]
[347734910,1736087440032,-2922.88,8.219e-05,2]
[347734911,1736087440041,-500.0,8.219e-05,2]
[347734912,1736087440051,-611.39,8.219e-05,2]
[347734913,1736087440061,-500.0,8.219e-05,2]
[347734914,1736087440070,-206.79998925,8.219e-05,2]
[347734915,1736087440079,-938.55,8.219e-05,2]
[347734916,1736087440089,-1444.28,8.219e-05,2]
[347734917,1736087440099,-500.0,8.219e-05,2]
[347734918,1736087440109,-500.0,8.219e-05,2]
[347734919,1736087440118,-996.14,8.219e-05,2]
[347734920,1736087440128,-533.69,8.219e-05,2]
[347734921,1736087440138,-500.0,8.219e-05,2]
[347734922,1736087440148,-602.64,8.219e-05,2]
[347734923,1736087440157,-510.46,8.219e-05,2]
[347734924,1736087440167,-5569.43,8.219e-05,2]
[347734925,1736087440176,-758.58,8.219e-05,2]
[347734926,1736087440186,-500.0,8.219e-05,2]
[347734927,1736087440196,-500.0,8.219e-05,2]
[347734928,1736087440206,-500.0,8.219e-05,2]
[347734929,1736087440215,-500.0,8.219e-05,2]
[347734930,1736087440225,-673.22,8.219e-05,2]
[347734931,1736087440235,-1180.17,8.219e-05,2]
[347734932,1736087440244,-500.0,8.219e-05,2]
[347734933,1736087440253,-500.0,8.219e-05,2]
[347734934,1736087440263,-500.0,8.219e-05,2]
[347734935,1736087440273,-1046.53,8.219e-05,2]
[347734936,1736087440282,-608.8,8.219e-05,2]
[347734937,1736087440292,-500.0,8.219e-05,2]
[347734938,1736087440301,-614.88,8.219e-05,2]
[347734939,1736087440310,-500.0,8.219e-05,2]
[347734940,1736087440320,-156.61539775,8.219e-05,2]
[347734941,1736087440329,-1270.54,8.219e-05,2]
[347734942,1736087440340,-500.0,8.219e-05,2]
[347734943,1736087440349,-646.03,8.219e-05,2]
[347734944,1736087440358,-500.0,8.219e-05,2]
[347734945,1736087440368,-500.0,8.219e-05,2]
[347734946,1736087440377,-500.0,8.219e-05,2]
[347734947,1736087440386,-500.0,8.219e-05,2]
[347734948,1736087440396,-566.75,8.219e-05,2]
[347734949,1736087440406,-500.0,8.219e-05,2]
[347734950,1736087440415,-500.0,8.219e-05,2]
[347734951,1736087440425,-500.0,8.219e-05,2]
[347734952,1736087440434,-638.28,8.219e-05,2]
[347734953,1736087440444,-1746.53,8.219e-05,2]
[347734954,1736087440454,-500.0,8.219e-05,2]
[347734955,1736087440464,-500.0,8.219e-05,2]
[347734956,1736087440474,-500.0,8.219e-05,2]
[347734957,1736087440484,-150.98357983,8.219e-05,2]
[347734958,1736087440494,-813.03,8.219e-05,2]
[347734959,1736087440503,-636.41,8.219e-05,2]
[347734960,1736087440513,-500.0,8.219e-05,2]
[347734961,1736087440523,-500.0,8.219e-05,2]
[347734962,1736087440532,-861.08,8.219e-05,2]
[347734963,1736087440541,-500.0,8.219e-05,2]
[347734964,1736087440551,-691.19,8.219e-05,2]
[347734965,1736087440561,-500.0,8.219e-05,2]
[347734966,1736087440571,-569.3,8.219e-05,2]
[347734967,1736087440581,-500.0,8.219e-05,2]
[347734968,1736087440592,-3515.39,8.219e-05,2]
[347734969,1736087440601,-500.0,8.219e-05,2]
[347734970,1736087440611,-500.0,8.219e-05,2]
[347734971,1736087440621,-1185.52,8.219e-05,2]
[347734972,1736087440631,-1147.13,8.219e-05,2]
[347734973,1736087440640,-500.0,8.219e-05,2]
[347734974,1736087440650,-500.0,8.219e-05,2]
[347734975,1736087440659,-500.0,8.219e-05,2]
[347734976,1736087440669,-500.0,8.219e-05,2]
[347734977,1736087440678,-879.06,8.219e-05,2]
[347734978,1736087440688,-1114.61,8.219e-05,2]
[347734979,1736087440698,-818.0,8.219e-05,2]
[347734980,1736087440707,-527.90947784,8.219e-05,2]
[347734981,1736087440717,-500.0,8.219e-05,2]
[347734982,1736087440727,-500.0,8.219e-05,2]
[347734983,1736087440736,-1021.84,8.219e-05,2]
[347734984,1736087440745,-560.95031517,8.219e-05,2]
[347734985,1736087440755,-500.0,8.219e-05,2]
[347734986,1736087440764,-500.0,8.219e-05,2]
[347734987,1736087440773,-500.0,8.219e-05,2]
[347734988,1736087440784,-500.0,8.219e-05,2]
[347734989,1736087440793,-698.7,8.219e-05,2]
[347734990,1736087440803,-624.66,8.219e-05,2]
[347734991,1736087440812,-251.72572234,8.219e-05,2]
[347734992,1736087440822,-500.0,8.219e-05,2]
[347734993,1736087440833,-500.0,8.219e-05,2]
[347734994,1736087440843,-268.1120358,8.219e-05,2]
[347734995,1736087440859,-231.8879642,8.219e-05,2]
[347734996,1736087440868,-500.0,8.219e-05,2]
[347734997,1736087440877,-738.42,8.219e-05,2]
[347734998,1736087440887,-500.0,8.219e-05,2]
[347734999,1736087440896,-605.13,8.219e-05,2]
[347735000,1736087440906,-500.0,8.219e-05,2]
[347735001,1736087440915,-1424.29,8.219e-05,2]
[347735002,1736087440925,-1100.5,8.219e-05,2]
[347735003,1736087440937,-500.0,8.219e-05,2]
[347735004,1736087440946,-500.0,8.219e-05,2]
[347735005,1736087440956,-645.23,8.219e-05,2]
[347735006,1736087440966,-461.31746517,8.219e-05,2]
[347735007,1736087440976,-500.0,8.219e-05,2]
[347735008,1736087440985,-500.03015591,8.219e-05,2]
[347735009,1736087440997,-28.71984409,8.219e-05,2]
[347735010,1736087441006,-500.0,8.219e-05,2]
[347735011,1736087441015,-906.79,8.219e-05,2]
[347735012,1736087441025,-728.95,8.219e-05,2]
[347735013,1736087441034,-691.64,8.219e-05,2]
[347735014,1736087441043,-440.24106151,8.219e-05,2]
[347735015,1736087441053,-500.0,8.219e-05,2]
[347735016,1736087441063,-589.99,8.219e-05,2]
[347735017,1736087441073,-500.0,8.219e-05,2]
[347735018,1736087441083,-1480.26,8.219e-05,2]
[347735019,1736087441093,-1775.43,8.219e-05,2]
[347735020,1736087441104,-500.0,8.219e-05,2]
[347735021,1736087441114,-743.22,8.219e-05,2]
[347735022,1736087441124,-500.0,8.219e-05,2]
[347735023,1736087441133,-500.0,8.219e-05,2]
[347735024,1736087441143,-781.44,8.219e-05,2]
[347735025,1736087441153,-699.6,8.219e-05,2]
[347735026,1736087441163,-500.0,8.219e-05,2]
[347735027,1736087441172,-500.0,8.219e-05,2]
[347735028,1736087441182,-968.92,8.219e-05,2]
[347735029,1736087441191,-616.91,8.219e-05,2]
[347735030,1736087441200,-500.0,8.219e-05,2]
[347735031,1736087441210,-1140.5,8.219e-05,2]
[347735032,1736087441219,-514.64,8.219e-05,2]
[347735033,1736087441229,-524.1,8.219e-05,2]
[347735034,1736087441239,-918.55,8.219e-05,2]
[347735035,1736087441248,-702.75,8.219e-05,2]
[347735036,1736087441258,-370.52259401,8.219e-05,2]
[347735037,1736087441270,-129.47740599,8.219e-05,2]
[347735038,1736087441280,-1033.65,8.219e-05,2]
[347735039,1736087441290,-2079.48,8.219e-05,2]
[347735040,1736087441299,-995.5,8.219e-05,2]
[347735041,1736087441308,-1082.324567,8.219e-05,2]
[347735042,1736087441318,-500.0,8.219e-05,2]
[347735043,1736087441327,-500.0,8.219e-05,2]
[347735044,1736087441338,-1050.75,8.219e-05,2]
[347735045,1736087441348,-156.211275,8.219e-05,2]
[347735046,1736087441357,-2288.37,8.219e-05,2]
[347735047,1736087441366,-155.848017,8.219e-05,2]
[347735048,1736087441376,-500.0,8.219e-05,2]
[347735049,1736087441386,-731.7,8.219e-05,2]
[347735050,1736087441395,-624.19,8.219e-05,2]
[347735051,1736087441404,-500.0,8.219e-05,2]
[347735052,1736087441414,-1187.11,8.219e-05,2]
[347735053,1736087441423,-757.3,8.219e-05,2]
[347735054,1736087441432,-500.0,8.219e-05,2]
[347735055,1736087441442,-500.0,8.219e-05,2]
[347735056,1736087441452,-621.88,8.219e-05,2]
[347735057,1736087441461,-1098.17,8.219e-05,2]
[347735058,1736087441470,-726.88,8.219e-05,2]
[347735059,1736087441479,-1226.741349,8.219e-05,2]
[347735060,1736087441489,-500.0,8.219e-05,2]
[347735061,1736087441499,-500.0,8.219e-05,2]
[347735062,1736087441508,-500.0,8.219e-05,2]
[347735063,1736087441517,-500.0,8.219e-05,2]
[347735064,1736087441527,-1252.46,8.219e-05,2]
[347735065,1736087441537,-500.0,8.219e-05,2]
[347735066,1736087441546,-1865.96,8.219e-05,2]
[347735067,1736087441556,-500.0,8.219e-05,2]
[347735068,1736087441565,-500.0,8.219e-05,2]
[347735069,1736087441574,-571.47,8.219e-05,2]
[347735070,1736087441583,-678.98,8.219e-05,2]
[347735071,1736087441593,-773.79,8.219e-05,2]
[347735072,1736087441602,-500.0,8.219e-05,2]
[347735073,1736087441612,-547.99,8.219e-05,2]
[347735074,1736087441621,-3163.81,8.219e-05,2]
[347735075,1736087441631,-536.82,8.219e-05,2]
[347735076,1736087441640,-2381.79,8.219e-05,2]
[347735077,1736087441649,-155.906236,8.219e-05,2]
[347735078,1736087441659,-500.0,8.219e-05,2]
[347735079,1736087441668,-640.07,8.219e-05,2]
[347735080,1736087441678,-626.77,8.219e-05,2]
[347735081,1736087441687,-1289.71,8.219e-05,2]
[347735082,1736087441697,-153.754164,8.219e-05,2]
[347735083,1736087441706,-500.0,8.219e-05,2]
[347735084,1736087441715,-500.0,8.219e-05,2]
[347735085,1736087441725,-500.0,8.219e-05,2]
[347735086,1736087441733,-155.826196,8.219e-05,2]
[347735087,1736087441744,-500.0,8.219e-05,2]
[347735088,1736087441753,-1260.65,8.219e-05,2]
[347735089,1736087441762,-723.31,8.219e-05,2]
[347735090,1736087441772,-500.0,8.219e-05,2]
[347735091,1736087441782,-760.01,8.219e-05,2]
[347735092,1736087441791,-734.13,8.219e-05,2]
[347735093,1736087441800,-1428.45,8.219e-05,2]
[347735094,1736087441810,-2038.47,8.219e-05,2]
[347735095,1736087441819,-500.0,8.219e-05,2]
[347735096,1736087441828,-824.53,8.219e-05,2]
[347735097,1736087441839,-203.85,8.219e-05,2]
[347735098,1736087441849,-500.0,8.219e-05,2]
[347735099,1736087441859,-1178.06,8.219e-05,2]
[347735100,1736087441868,-500.0,8.219e-05,2]
[347735101,1736087441878,-500.0,8.219e-05,2]
[347735102,1736087441887,-665.54,8.219e-05,2]
[347735103,1736087441896,-841.67,8.219e-05,2]
[347735104,1736087441906,-500.0,8.219e-05,2]
[347735105,1736087441915,-567.9,8.219e-05,2]
[347735106,1736087441925,-501.11,8.219e-05,2]
[347735107,1736087441936,-500.0,8.219e-05,2]
[347735108,1736087441947,-743.28,8.219e-05,2]
[347735109,1736087441956,-629.72,8.219e-05,2]
[347735110,1736087441965,-1735.99,8.219e-05,2]
[347735111,1736087441975,-500.0,8.219e-05,2]
[347735112,1736087441984,-500.0,8.219e-05,2]
[347735113,1736087441994,-1632.07,8.219e-05,2]
[347735114,1736087442005,-1243.34,8.219e-05,2]
[347735115,1736087442014,-500.0,8.219e-05,2]
[347735116,1736087442023,-500.0,8.219e-05,2]
[347735117,1736087442032,-863.18,8.219e-05,2]
[347735118,1736087442041,-740.77,8.219e-05,2]
[347735120,1736087442050,-652.36,8.219e-05,2]
[347735121,1736087442060,-982.16,8.219e-05,2]
[347735122,1736087442069,-500.0,8.219e-05,2]
[347735123,1736087442078,-500.0,8.219e-05,2]
[347735124,1736087442090,-926.05,8.219e-05,2]
[347735125,1736087442099,-1594.81,8.219e-05,2]
[347735126,1736087442109,-676.75,8.219e-05,2]
[347735128,1736087442118,-1315.68,8.219e-05,2]
[347735130,1736087442128,-677.8,8.219e-05,2]
[347735132,1736087442138,-2577.87,8.219e-05,2]
[347735134,1736087442147,-500.0,8.219e-05,2]
[347735136,1736087442156,-1785.83,8.219e-05,2]
[347735138,1736087442166,-749.64,8.219e-05,2]
[347735139,1736087442175,-1591.99,8.219e-05,2]
[347735141,1736087442185,-665.75,8.219e-05,2]
[347735142,1736087442194,-500.0,8.219e-05,2]
[347735143,1736087442204,-697.79,8.219e-05,2]
[347735144,1736087442213,-500.0,8.219e-05,2]
[347735145,1736087442223,-1315.89,8.219e-05,2]
[347735146,1736087442232,-500.0,8.219e-05,2]
[347735147,1736087442241,-1730.96,8.219e-05,2]
[347735148,1736087442251,-500.0,8.219e-05,2]
[347735149,1736087442261,-1071.44,8.219e-05,2]
[347735150,1736087442271,-1369.17,8.219e-05,2]
[347735151,1736087442280,-500.0,8.219e-05,2]
[347735152,1736087442290,-1027.49,8.219e-05,2]
[347735153,1736087442300,-500.0,8.219e-05,2]
[347735154,1736087442310,-500.0,8.219e-05,2]
[347735155,1736087442319,-780.04,8.219e-05,2]
[347735156,1736087442330,-500.0,8.219e-05,2]
[347735157,1736087442343,-500.0,8.219e-05,2]
[347735159,1736087442353,-500.0,8.219e-05,2]
[347735161,1736087442362,-714.9,8.219e-05,2]
[347735163,1736087442372,-500.0,8.219e-05,2]
[347735165,1736087442382,-761.44,8.219e-05,2]
[347735166,1736087442393,-4721.47,8.219e-05,2]
[347735168,1736087442404,-654.93,8.219e-05,2]
[347735169,1736087442414,-163.39735851,8.219e-05,2]
[347735170,1736087442448,-336.60264149,8.219e-05,2]
[347735171,1736087442458,-1218.9,8.219e-05,2]
[347735172,1736087442469,-1241.25,8.219e-05,2]
[347735174,1736087442478,-500.0,8.219e-05,2]
[347735176,1736087442488,-2665.79,8.219e-05,2]
[347735177,1736087442497,-500.0,8.219e-05,2]
[347735179,1736087442506,-500.0,8.219e-05,2]
[347735180,1736087442516,-119.03492844,8.219e-05,2]
[347735181,1736087442528,-380.96507156,8.219e-05,2]
[347735182,1736087442538,-760.67,8.219e-05,2]
[347735184,1736087442548,-500.0,8.219e-05,2]
[347735186,1736087442557,-4518.88,8.219e-05,2]
[347735187,1736087442567,-500.0,8.219e-05,2]
[347735189,1736087442577,-500.0,8.219e-05,2]
[347735190,1736087442592,-500.0,8.219e-05,2]
[347735191,1736087442601,-971.8,8.219e-05,2]
[347735192,1736087442611,-500.0,8.219e-05,2]
[347735193,1736087442620,-1454.08,8.219e-05,2]
[347735194,1736087442630,-748.36,8.219e-05,2]
[347735195,1736087442640,-632.83,8.219e-05,2]
[347735196,1736087442650,-3009.84,8.219e-05,2]
[347735197,1736087442660,-3596.85,8.219e-05,2]
[347735198,1736087442670,-1144.8,8.219e-05,2]
[347735199,1736087442680,-1306.84,8.219e-05,2]
[347735200,1736087442689,-1172.62,8.219e-05,2]
[347735201,1736087442698,-1053.43,8.219e-05,2]
[347735202,1736087442708,-2149.95,8.219e-05,2]
[347735203,1736087442718,-500.0,8.219e-05,2]
[347735204,1736087442727,-4867.27,8.219e-05,2]
[347735205,1736087442737,-956.06,8.219e-05,2]
[347735206,1736087442746,-3847.94,8.219e-05,2]
[347735207,1736087442755,-745.14,8.219e-05,2]
[347735208,1736087442765,-928.53,8.219e-05,2]
[347735209,1736087442774,-573.78,8.219e-05,2]
[347735210,1736087442781,-1253.55502454,8.219e-05,2]
[347735211,1736087442792,-490.79497546,8.219e-05,2]
[347735212,1736087442801,-2427.30295119,8.219e-05,2]
[347735213,1736087442825,-524.3576206,8.219e-05,2]
[347735214,1736087442839,-508.85942821,8.219e-05,2]
[347735215,1736087442849,-917.07,8.219e-05,2]
[347735216,1736087442859,-12077.17,8.219e-05,2]
[347735217,1736087442869,-500.0,8.219e-05,2]
[347735218,1736087442879,-1712.07,8.219e-05,2]
[347735219,1736087442889,-4603.7,8.219e-05,2]
[347735221,1736087442898,-1317.55,8.219e-05,2]
[347735222,1736087442908,-586.81,8.219e-05,2]
[347735223,1736087442918,-7134.1,8.219e-05,2]
[347735224,1736087442928,-2511.05,8.219e-05,2]
[347735225,1736087442940,-1211.2,8.219e-05,2]
[347735226,1736087442950,-500.0,8.219e-05,2]
[347735227,1736087442960,-3861.99,8.219e-05,2]
[347735228,1736087442969,-766.97,8.219e-05,2]
[347735229,1736087442979,-500.0,8.219e-05,2]
[347735230,1736087442989,-1929.34,8.219e-05,2]
[347735231,1736087442999,-1125.8,8.219e-05,2]
[347735232,1736087443009,-500.0,8.219e-05,2]
[347735233,1736087443018,-5390.32,8.219e-05,2]
[347735234,1736087443028,-841.04,8.219e-05,2]
[347735236,1736087443038,-1134.92,8.219e-05,2]
[347735237,1736087443051,-805.42,8.219e-05,2]
[347735238,1736087443060,-569.83,8.219e-05,2]
[347735239,1736087443070,-2538.04,8.219e-05,2]
[347735240,1736087443079,-6872.1,8.219e-05,2]
[347735241,1736087443308,-1929.3,8.219e-05,2]
[347735242,1736087443319,-521.77,8.219e-05,2]
[347735243,1736087443328,-500.0,8.219e-05,2]
[347735244,1736087443340,-942.19,8.219e-05,2]
[347735245,1736087443349,-2963.68,8.219e-05,2]
[347735246,1736087443359,-500.0,8.219e-05,2]
[347735247,1736087443368,-3891.85,8.219e-05,2]
[347735248,1736087443378,-608.16612184,8.219e-05,2]
[347735249,1736087443387,-500.0,8.219e-05,2]
[347735250,1736087443397,-1405.3,8.219e-05,2]
[347735251,1736087443406,-1395.54,8.219e-05,2]
[347735252,1736087443415,-945.67,8.219e-05,2]
[347735253,1736087443424,-500.0,8.219e-05,2]
[347735254,1736087443434,-1847.98,8.219e-05,2]
[347735255,1736087443443,-1808.06,8.219e-05,2]
[347735256,1736087443453,-500.0,8.219e-05,2]
[347735257,1736087443462,-5006.82,8.219e-05,2]
[347735259,1736087443471,-5368.34,8.219e-05,2]
[347735261,1736087443480,-500.0,8.219e-05,2]
[347735263,1736087443489,-650.58,8.219e-05,2]
[347735265,1736087443499,-3111.48,8.219e-05,2]
[347735267,1736087443508,-1773.48,8.219e-05,2]
[347735269,1736087443517,-6404.36,8.219e-05,2]
[347735270,1736087443527,-901.65,8.219e-05,2]
[347735271,1736087443537,-2824.28,8.219e-05,2]
[347735272,1736087443547,-5155.77,8.219e-05,2]
[347735273,1736087443556,-1458.21,8.219e-05,2]
[347735274,1736087443566,-3443.73,8.219e-05,2]
[347735275,1736087443575,-748.88,8.219e-05,2]
[347735276,1736087443586,-1521.28,8.219e-05,2]
[347735277,1736087443596,-2067.6,8.219e-05,2]
[347735278,1736087443606,-5645.3,8.219e-05,2]
[347735279,1736087443615,-555.26,8.219e-05,2]
[347735281,1736087443625,-1159.91,8.219e-05,2]
[347735283,1736087443634,-2759.01,8.219e-05,2]
[347735284,1736087443644,-1115.77,8.219e-05,2]
[347735286,1736087443653,-1223.55,8.219e-05,2]
[347735288,1736087443663,-2364.91,8.219e-05,2]
[347735290,1736087443673,-3061.12,8.219e-05,2]
[347735291,1736087443682,-1106.77,8.219e-05,2]
[347735292,1736087443691,-1536.35,8.219e-05,2]
[347735293,1736087443701,-879.52,8.219e-05,2]
[347735294,1736087443710,-506.04,8.219e-05,2]
[347735295,1736087443720,-699.73,8.219e-05,2]
[347735296,1736087443729,-1123.2,8.219e-05,2]
[347735297,1736087443739,-2186.84,8.219e-05,2]
[347735298,1736087443749,-500.0,8.219e-05,2]
[347735299,1736087443758,-1485.74,8.219e-05,2]
[347735300,1736087443768,-2310.84,8.219e-05,2]
[347735301,1736087443777,-1449.67,8.219e-05,2]
[347735302,1736087443786,-662.65,8.219e-05,2]
[347735303,1736087443796,-732.61,8.219e-05,2]
[347735304,1736087443806,-1510.38,8.219e-05,2]
[347735305,1736087443815,-1624.68,8.219e-05,2]
[347735306,1736087443825,-1317.06,8.219e-05,2]
[347735307,1736087443835,-818.3,8.219e-05,2]
[347735308,1736087443845,-565.58,8.219e-05,2]
[347735309,1736087443855,-500.0,8.219e-05,2]
[347735310,1736087443864,-1328.64,8.219e-05,2]
[347735311,1736087443874,-732.45,8.219e-05,2]
[347735312,1736087443883,-569.95,8.219e-05,2]
[347735313,1736087443892,-2550.53,8.219e-05,2]
[347735314,1736087443901,-500.0,8.219e-05,2]
[347735315,1736087443911,-882.95,8.219e-05,2]
[347735316,1736087443921,-1751.15,8.219e-05,2]
[347735317,1736087443931,-533.7,8.219e-05,2]
[347735318,1736087443942,-1774.07,8.219e-05,2]
[347735319,1736087443951,-864.64,8.219e-05,2]